[Event "Titled Tuesday Blitz March 21 Early 2023"]
[White "Van Osch, Mees"]
[Black "Crevatin, Leo"]
[WhiteFideId "1035967"]
[BlackFideId "1726307"]
[WhiteElo "2324"]
[BlackElo "2190"]
[Result "1-0"]
[Round "08"]
[TimeControl "180+2"]
[Date "2023.03.21"]
[WhiteClock "0:00:37"]
[BlackClock "0:00:02"]

1. e4 {[%clk 0:03:00]}  c5 {[%clk 0:02:59]} 2. Nf3 {[%clk 0:02:59]}  d6 {[%clk 0:03:00]} 3. d4 {[%clk 0:02:59]}  cxd4 {[%clk 0:03:01]} 4. Nxd4 {[%clk 0:03:00]}  Nf6 {[%clk 0:03:01]} 5. Nc3 {[%clk 0:03:00]}  Nc6 {[%clk 0:03:01]} 6. Be3 {[%clk 0:02:58]}  Ng4 {[%clk 0:02:59]} 7. Bb5 {[%clk 0:02:59]}  Nxe3 {[%clk 0:02:56]} 8. Nxc6 {[%clk 0:02:59]}  bxc6 {[%clk 0:02:42]} 9. Bxc6+ {[%clk 0:03:00]}  Bd7 {[%clk 0:02:42]} 10. Bxd7+ {[%clk 0:03:00]}  Qxd7 {[%clk 0:02:43]} 11. fxe3 {[%clk 0:03:01]}  g6 {[%clk 0:02:42]} 12. e5 {[%clk 0:03:00]}  dxe5 {[%clk 0:02:37]} 13. Qxd7+ {[%clk 0:02:59]}  Kxd7 {[%clk 0:02:38]} 14. O-O-O+ {[%clk 0:03:00]}  Kc6 {[%clk 0:02:38]} 15. Rd5 {[%clk 0:02:56]}  f6 {[%clk 0:02:20]} 16. Rhd1 {[%clk 0:02:55]}  Bh6 {[%clk 0:02:20]} 17. R1d3 {[%clk 0:02:49]}  Rhc8 {[%clk 0:02:15]} 18. Kd1 {[%clk 0:02:49]}  a6 {[%clk 0:02:11]} 19. e4 {[%clk 0:02:44]}  Rc7 {[%clk 0:02:09]} 20. b4 {[%clk 0:02:42]}  Kb7 {[%clk 0:02:06]} 21. Na4 {[%clk 0:02:38]}  Rac8 {[%clk 0:01:22]} 22. Nc5+ {[%clk 0:02:33]}  Ka7 {[%clk 0:01:19]} 23. c4 {[%clk 0:02:28]}  Rc6 {[%clk 0:01:06]} 24. Rh3 {[%clk 0:02:22]}  Bf8 {[%clk 0:00:56]} 25. Rxh7 {[%clk 0:02:22]}  Ka8 {[%clk 0:00:55]} 26. Rd7 {[%clk 0:02:19]}  a5 {[%clk 0:00:47]} 27. a3 {[%clk 0:02:14]}  axb4 {[%clk 0:00:47]} 28. axb4 {[%clk 0:02:15]}  Rb6 {[%clk 0:00:45]} 29. Rh3 {[%clk 0:01:47]}  Rd6+ {[%clk 0:00:34]} 30. Rxd6 {[%clk 0:01:46]}  exd6 {[%clk 0:00:35]} 31. Ra3+ {[%clk 0:01:43]}  Kb8 {[%clk 0:00:34]} 32. Nd7+ {[%clk 0:01:40]}  Kb7 {[%clk 0:00:30]} 33. Rc3 {[%clk 0:01:27]}  Be7 {[%clk 0:00:29]} 34. Ke2 {[%clk 0:01:25]}  Rc7 {[%clk 0:00:24]} 35. c5 {[%clk 0:01:24]}  dxc5 {[%clk 0:00:17]} 36. Nxc5+ {[%clk 0:01:23]}  Bxc5 {[%clk 0:00:17]} 37. bxc5 {[%clk 0:01:23]}  Kc6 {[%clk 0:00:17]} 38. Rf3 {[%clk 0:01:16]}  Rf7 {[%clk 0:00:15]} 39. g4 {[%clk 0:01:13]}  g5 {[%clk 0:00:14]} 40. Rc3 {[%clk 0:01:08]}  Rh7 {[%clk 0:00:12]} 41. h3 {[%clk 0:01:08]}  Ra7 {[%clk 0:00:11]} 42. Kf3 {[%clk 0:00:58]}  Ra5 {[%clk 0:00:10]} 43. Kg3 {[%clk 0:00:51]}  Ra4 {[%clk 0:00:08]} 44. Rf3 {[%clk 0:00:50]}  Rxe4 {[%clk 0:00:07]} 45. Rxf6+ {[%clk 0:00:50]}  Kxc5 {[%clk 0:00:08]} 46. Rf5 {[%clk 0:00:46]}  Kd4 {[%clk 0:00:06]} 47. Rxg5 {[%clk 0:00:46]}  Re3+ {[%clk 0:00:05]} 48. Kg2 {[%clk 0:00:44]}  e4 {[%clk 0:00:05]} 49. h4 {[%clk 0:00:44]}  Ra3 {[%clk 0:00:04]} 50. h5 {[%clk 0:00:42]}  Ke3 {[%clk 0:00:03]} 51. Rf5 {[%clk 0:00:39]}  Ke2 {[%clk 0:00:02]} 52. h6 {[%clk 0:00:39]}  Ra6 {[%clk 0:00:02]} 53. g5 {[%clk 0:00:38]}  Ra7 {[%clk 0:00:01]} 54. g6 {[%clk 0:00:38]}  Ra6 {[%clk 0:00:01]} 55. Rg5 {[%clk 0:00:36]}  e3 {[%clk 0:00:02]} 56. g7 {[%clk 0:00:37]}  Ra8 {[%clk 0:00:02]} 57. g8=Q {[%clk 0:00:37]} 1-0


[Site "https://www.chess.com"]

[Event "Titled Tuesday Blitz March 21 Early 2023"]
[White "djokovic74"]
[Black "Pniaczek, Marek"]
[BlackFideId "21800421"]
[WhiteElo "2573"]
[BlackElo "2138"]
[Result "0-1"]
[Round "08"]
[TimeControl "180+2"]
[Date "2023.03.21"]
[WhiteClock "0:00:03"]
[BlackClock "0:00:19"]

1. c4 {[%clk 0:02:59]}  e6 {[%clk 0:02:59]} 2. Nf3 {[%clk 0:03:00]}  Nf6 {[%clk 0:02:59]} 3. g3 {[%clk 0:03:00]}  d5 {[%clk 0:02:59]} 4. d4 {[%clk 0:03:01]}  Be7 {[%clk 0:02:59]} 5. Bg2 {[%clk 0:03:01]}  O-O {[%clk 0:02:59]} 6. O-O {[%clk 0:03:02]}  dxc4 {[%clk 0:02:59]} 7. Qc2 {[%clk 0:03:02]}  c6 {[%clk 0:02:56]} 8. Qxc4 {[%clk 0:03:02]}  b5 {[%clk 0:02:50]} 9. Qc2 {[%clk 0:03:02]}  Bb7 {[%clk 0:02:45]} 10. Rd1 {[%clk 0:02:58]}  Nbd7 {[%clk 0:02:36]} 11. Nc3 {[%clk 0:02:50]}  Qb6 {[%clk 0:02:35]} 12. Ne5 {[%clk 0:01:46]}  Nxe5 {[%clk 0:02:29]} 13. dxe5 {[%clk 0:01:47]}  Nd5 {[%clk 0:02:30]} 14. Ne4 {[%clk 0:01:43]}  c5 {[%clk 0:02:22]} 15. Bg5 {[%clk 0:01:10]}  Nb4 {[%clk 0:02:14]} 16. Qc1 {[%clk 0:01:08]}  Bxg5 {[%clk 0:01:47]} 17. Qxg5 {[%clk 0:01:07]}  Bxe4 {[%clk 0:01:47]} 18. Bxe4 {[%clk 0:01:07]}  Rad8 {[%clk 0:01:47]} 19. a3 {[%clk 0:01:02]}  Nd5 {[%clk 0:01:33]} 20. Rd2 {[%clk 0:00:39]}  h6 {[%clk 0:01:31]} 21. Qh4 {[%clk 0:00:09]}  Rd7 {[%clk 0:01:31]} 22. Rad1 {[%clk 0:00:08]}  Rfd8 {[%clk 0:01:30]} 23. e3 {[%clk 0:00:05]}  c4 {[%clk 0:01:25]} 24. Bxd5 {[%clk 0:00:05]}  exd5 {[%clk 0:01:20]} 25. Qd4 {[%clk 0:00:05]}  Kf8 {[%clk 0:01:03]} 26. Qxb6 {[%clk 0:00:04]}  axb6 {[%clk 0:01:03]} 27. Rd4 {[%clk 0:00:04]}  Ke7 {[%clk 0:01:03]} 28. f4 {[%clk 0:00:04]}  Ke6 {[%clk 0:01:02]} 29. Kf2 {[%clk 0:00:03]}  f5 {[%clk 0:00:52]} 30. exf6 {[%clk 0:00:03]}  gxf6 {[%clk 0:00:53]} 31. g4 {[%clk 0:00:04]}  h5 {[%clk 0:00:50]} 32. h3 {[%clk 0:00:04]}  hxg4 {[%clk 0:00:47]} 33. hxg4 {[%clk 0:00:04]}  Rh8 {[%clk 0:00:48]} 34. Kg2 {[%clk 0:00:05]}  Ra8 {[%clk 0:00:38]} 35. e4 {[%clk 0:00:04]}  Rad8 {[%clk 0:00:35]} 36. exd5+ {[%clk 0:00:01]}  Kd6 {[%clk 0:00:35]} 37. f5 {[%clk 0:00:01]}  Kc5 {[%clk 0:00:34]} 38. Re4 {[%clk 0:00:01]}  Rxd5 {[%clk 0:00:31]} 39. Rde1 {[%clk 0:00:02]}  Rd2+ {[%clk 0:00:31]} 40. R1e2 {[%clk 0:00:02]}  b4 {[%clk 0:00:30]} 41. Kf3 {[%clk 0:00:02]}  bxa3 {[%clk 0:00:28]} 42. bxa3 {[%clk 0:00:03]}  c3 {[%clk 0:00:28]} 43. R2e3 {[%clk 0:00:02]}  R8d3 {[%clk 0:00:25]} 44. Rxd3 {[%clk 0:00:03]}  Rxd3+ {[%clk 0:00:25]} 45. Ke2 {[%clk 0:00:04]}  c2 {[%clk 0:00:23]} 46. Re8 {[%clk 0:00:03]}  Rc3 {[%clk 0:00:19]} 47. Rc8+ {[%clk 0:00:04]}  Kd4 {[%clk 0:00:19]} 48. Rd8+ {[%clk 0:00:04]}  Ke5 {[%clk 0:00:19]} 49. Re8+ {[%clk 0:00:03]}  Kf4 {[%clk 0:00:19]} 0-1


[Site "https://www.chess.com"]

[Event "Titled Tuesday Blitz March 21 Early 2023"]
[White "lolliNOPE"]
[Black "Larino Nieto, David"]
[BlackFideId "2256444"]
[WhiteElo "2059"]
[BlackElo "2506"]
[Result "0-1"]
[Round "08"]
[TimeControl "180+2"]
[Date "2023.03.21"]
[WhiteClock "0:00:17"]
[BlackClock "0:01:40"]

1. e4 {[%clk 0:02:54]}  d5 {[%clk 0:02:59]} 2. exd5 {[%clk 0:02:52]}  Qxd5 {[%clk 0:03:00]} 3. Nc3 {[%clk 0:02:52]}  Qa5 {[%clk 0:03:00]} 4. d4 {[%clk 0:02:52]}  Nf6 {[%clk 0:03:01]} 5. Nf3 {[%clk 0:02:52]}  Nc6 {[%clk 0:03:01]} 6. Bb5 {[%clk 0:02:52]}  Ne4 {[%clk 0:03:02]} 7. Bd2 {[%clk 0:02:48]}  Nxc3 {[%clk 0:03:01]} 8. Bxc6+ {[%clk 0:02:48]}  bxc6 {[%clk 0:03:02]} 9. Bxc3 {[%clk 0:02:48]}  Qd5 {[%clk 0:03:02]} 10. O-O {[%clk 0:02:48]}  Bg4 {[%clk 0:03:01]} 11. Re1 {[%clk 0:02:48]}  Bxf3 {[%clk 0:02:58]} 12. Qxf3 {[%clk 0:02:48]}  Qxf3 {[%clk 0:02:58]} 13. gxf3 {[%clk 0:02:49]}  e6 {[%clk 0:02:58]} 14. b3 {[%clk 0:02:46]}  O-O-O {[%clk 0:02:57]} 15. Kg2 {[%clk 0:02:45]}  Rd5 {[%clk 0:02:57]} 16. Re5 {[%clk 0:02:44]}  Bd6 {[%clk 0:02:56]} 17. Rxd5 {[%clk 0:02:42]}  cxd5 {[%clk 0:02:57]} 18. Bd2 {[%clk 0:02:30]}  Kd7 {[%clk 0:02:47]} 19. Rc1 {[%clk 0:02:17]}  c6 {[%clk 0:02:39]} 20. c4 {[%clk 0:02:17]}  Ra8 {[%clk 0:02:38]} 21. c5 {[%clk 0:02:10]}  Bc7 {[%clk 0:02:37]} 22. Rb1 {[%clk 0:02:02]}  a6 {[%clk 0:02:36]} 23. h3 {[%clk 0:01:58]}  g6 {[%clk 0:02:34]} 24. Kf1 {[%clk 0:01:57]}  Bd8 {[%clk 0:02:34]} 25. Ke2 {[%clk 0:01:57]}  Bf6 {[%clk 0:02:34]} 26. Kd3 {[%clk 0:01:57]}  Bg7 {[%clk 0:02:35]} 27. f4 {[%clk 0:01:54]}  Rb8 {[%clk 0:02:32]} 28. a4 {[%clk 0:01:47]}  Bf6 {[%clk 0:02:30]} 29. b4 {[%clk 0:01:39]}  Bd8 {[%clk 0:02:28]} 30. Be3 {[%clk 0:01:33]}  Bc7 {[%clk 0:02:28]} 31. Bd2 {[%clk 0:01:33]}  Ke7 {[%clk 0:02:28]} 32. Be3 {[%clk 0:01:22]}  Kf6 {[%clk 0:02:28]} 33. Ke2 {[%clk 0:01:11]}  Kf5 {[%clk 0:02:28]} 34. Kf3 {[%clk 0:01:11]}  h6 {[%clk 0:02:27]} 35. h4 {[%clk 0:01:09]}  Bd8 {[%clk 0:02:21]} 36. Kg3 {[%clk 0:01:06]}  Ke4 {[%clk 0:02:21]} 37. Rb3 {[%clk 0:01:00]}  Ba5 {[%clk 0:01:54]} 38. f3+ {[%clk 0:00:53]}  Kf5 {[%clk 0:01:54]} 39. Bd2 {[%clk 0:00:53]}  Bc7 {[%clk 0:01:54]} 40. Be3 {[%clk 0:00:51]}  f6 {[%clk 0:01:54]} 41. Bd2 {[%clk 0:00:44]}  g5 {[%clk 0:01:54]} 42. hxg5 {[%clk 0:00:44]}  fxg5 {[%clk 0:01:49]} 43. Rb1 {[%clk 0:00:23]}  h5 {[%clk 0:01:42]} 44. Rh1 {[%clk 0:00:20]}  h4+ {[%clk 0:01:41]} 45. Kf2 {[%clk 0:00:19]}  Bxf4 {[%clk 0:01:41]} 46. Bxf4 {[%clk 0:00:17]}  Kxf4 {[%clk 0:01:42]} 47. Rg1 {[%clk 0:00:18]}  Rxb4 {[%clk 0:01:41]} 48. Rg4+ {[%clk 0:00:18]}  Kf5 {[%clk 0:01:41]} 49. Kg2 {[%clk 0:00:17]}  Rxa4 {[%clk 0:01:40]} 0-1


[Site "https://www.chess.com"]

[Event "Titled Tuesday Blitz March 21 Early 2023"]
[White "Aarav Dengla"]
[Black "Starozhilov, Leonid"]
[WhiteFideId "45059756"]
[BlackFideId "14106752"]
[WhiteElo "2285"]
[BlackElo "2402"]
[Result "0-1"]
[Round "08"]
[TimeControl "180+2"]
[Date "2023.03.21"]
[WhiteClock "0:00:02"]
[BlackClock "0:00:20"]

1. e4 {[%clk 0:03:00]}  g6 {[%clk 0:02:58]} 2. d4 {[%clk 0:02:58]}  Bg7 {[%clk 0:02:58]} 3. Nc3 {[%clk 0:02:56]}  d6 {[%clk 0:02:58]} 4. Be3 {[%clk 0:02:56]}  a6 {[%clk 0:02:56]} 5. Qd2 {[%clk 0:02:54]}  b5 {[%clk 0:02:56]} 6. O-O-O {[%clk 0:02:47]}  Nd7 {[%clk 0:02:53]} 7. h4 {[%clk 0:02:37]}  h5 {[%clk 0:02:52]} 8. Nh3 {[%clk 0:02:35]}  Ngf6 {[%clk 0:02:51]} 9. f3 {[%clk 0:02:30]}  Nb6 {[%clk 0:02:48]} 10. Bd3 {[%clk 0:02:23]}  c6 {[%clk 0:02:47]} 11. Ng5 {[%clk 0:02:18]}  Nh7 {[%clk 0:02:41]} 12. Nxh7 {[%clk 0:01:07]}  Rxh7 {[%clk 0:02:42]} 13. e5 {[%clk 0:01:08]}  d5 {[%clk 0:02:20]} 14. g4 {[%clk 0:01:04]}  Nc4 {[%clk 0:02:07]} 15. Bxc4 {[%clk 0:00:58]}  bxc4 {[%clk 0:01:59]} 16. Na4 {[%clk 0:00:57]}  hxg4 {[%clk 0:01:55]} 17. h5 {[%clk 0:00:52]}  Rxh5 {[%clk 0:01:47]} 18. Rxh5 {[%clk 0:00:43]}  gxh5 {[%clk 0:01:48]} 19. Rh1 {[%clk 0:00:44]}  Bf5 {[%clk 0:01:31]} 20. e6 {[%clk 0:00:18]}  Qd6 {[%clk 0:01:01]} 21. Nc5 {[%clk 0:00:13]}  fxe6 {[%clk 0:00:51]} 22. Rxh5 {[%clk 0:00:12]}  Qg3 {[%clk 0:00:38]} 23. fxg4 {[%clk 0:00:05]}  Qf3 {[%clk 0:00:20]} 24. Rg5 {[%clk 0:00:02]}  Bxg4 {[%clk 0:00:20]} 0-1


[Site "https://www.chess.com"]

[Event "Titled Tuesday Blitz March 21 Early 2023"]
[White "Bas Mas, Jose Joaquin"]
[Black "Budrewicz, Krzysztof"]
[WhiteFideId "22219064"]
[BlackFideId "1127950"]
[WhiteElo "2233"]
[BlackElo "2230"]
[Result "0-1"]
[Round "08"]
[TimeControl "180+2"]
[Date "2023.03.21"]
[WhiteClock "0:00:13"]
[BlackClock "0:01:13"]

1. e4 {[%clk 0:03:00]}  d5 {[%clk 0:02:58]} 2. exd5 {[%clk 0:03:00]}  Nf6 {[%clk 0:02:58]} 3. c4 {[%clk 0:03:00]}  c6 {[%clk 0:02:55]} 4. d4 {[%clk 0:03:00]}  cxd5 {[%clk 0:02:55]} 5. Nc3 {[%clk 0:03:01]}  Nc6 {[%clk 0:02:55]} 6. Bg5 {[%clk 0:02:58]}  e6 {[%clk 0:02:53]} 7. Nf3 {[%clk 0:02:58]}  Be7 {[%clk 0:02:53]} 8. cxd5 {[%clk 0:02:47]}  Nxd5 {[%clk 0:02:51]} 9. Bxe7 {[%clk 0:02:47]}  Ncxe7 {[%clk 0:02:51]} 10. Bd3 {[%clk 0:02:48]}  h6 {[%clk 0:02:49]} 11. O-O {[%clk 0:02:47]}  O-O {[%clk 0:02:47]} 12. Rc1 {[%clk 0:02:47]}  Bd7 {[%clk 0:02:47]} 13. Re1 {[%clk 0:02:47]}  Rc8 {[%clk 0:02:47]} 14. Ne5 {[%clk 0:02:42]}  Bc6 {[%clk 0:02:28]} 15. Nxc6 {[%clk 0:02:40]}  Nxc6 {[%clk 0:02:26]} 16. Bb1 {[%clk 0:02:40]}  Nf6 {[%clk 0:02:21]} 17. Qb3 {[%clk 0:01:37]}  b6 {[%clk 0:02:16]} 18. Rcd1 {[%clk 0:01:35]}  Na5 {[%clk 0:02:11]} 19. Qb5 {[%clk 0:01:29]}  Qd7 {[%clk 0:02:06]} 20. Qxd7 {[%clk 0:01:27]}  Nxd7 {[%clk 0:02:07]} 21. d5 {[%clk 0:01:27]}  e5 {[%clk 0:02:07]} 22. Bf5 {[%clk 0:01:26]}  Rfd8 {[%clk 0:01:58]} 23. Bxd7 {[%clk 0:01:12]}  Rxd7 {[%clk 0:01:58]} 24. Rxe5 {[%clk 0:01:13]}  Nc4 {[%clk 0:01:59]} 25. Re2 {[%clk 0:01:08]}  Nxb2 {[%clk 0:01:59]} 26. Rxb2 {[%clk 0:01:08]}  Rxc3 {[%clk 0:01:59]} 27. g3 {[%clk 0:01:07]}  Kf8 {[%clk 0:01:54]} 28. Kg2 {[%clk 0:01:02]}  Ke7 {[%clk 0:01:54]} 29. Re2+ {[%clk 0:00:59]}  Kd6 {[%clk 0:01:55]} 30. Re8 {[%clk 0:00:59]}  g6 {[%clk 0:01:49]} 31. h4 {[%clk 0:00:57]}  h5 {[%clk 0:01:48]} 32. Rd2 {[%clk 0:00:56]}  Ra3 {[%clk 0:01:45]} 33. Re4 {[%clk 0:00:48]}  Ra5 {[%clk 0:01:44]} 34. Rf4 {[%clk 0:00:47]}  f5 {[%clk 0:01:44]} 35. Rfd4 {[%clk 0:00:47]}  Rc7 {[%clk 0:01:39]} 36. R4d3 {[%clk 0:00:38]}  Rcc5 {[%clk 0:01:38]} 37. Re2 {[%clk 0:00:37]}  Rxd5 {[%clk 0:01:38]} 38. Rde3 {[%clk 0:00:38]}  Re5 {[%clk 0:01:36]} 39. Rd2+ {[%clk 0:00:37]}  Rad5 {[%clk 0:01:36]} 40. Rxd5+ {[%clk 0:00:36]}  Kxd5 {[%clk 0:01:36]} 41. Rd3+ {[%clk 0:00:35]}  Kc6 {[%clk 0:01:34]} 42. Rd8 {[%clk 0:00:34]}  Re6 {[%clk 0:01:25]} 43. Kf3 {[%clk 0:00:32]}  b5 {[%clk 0:01:23]} 44. Kf4 {[%clk 0:00:29]}  Kc5 {[%clk 0:01:20]} 45. Kg5 {[%clk 0:00:21]}  Kb4 {[%clk 0:01:20]} 46. Rg8 {[%clk 0:00:17]}  Ka3 {[%clk 0:01:20]} 47. Rxg6 {[%clk 0:00:18]}  Rxg6+ {[%clk 0:01:11]} 48. Kxg6 {[%clk 0:00:19]}  Kxa2 {[%clk 0:01:12]} 49. Kxh5 {[%clk 0:00:17]}  b4 {[%clk 0:01:12]} 50. Kg5 {[%clk 0:00:12]}  b3 {[%clk 0:01:13]} 51. h5 {[%clk 0:00:12]}  b2 {[%clk 0:01:14]} 52. h6 {[%clk 0:00:13]}  b1=Q {[%clk 0:01:14]} 53. h7 {[%clk 0:00:14]}  Qb8 {[%clk 0:01:14]} 54. Kxf5 {[%clk 0:00:13]}  Qh8 {[%clk 0:01:14]} 55. Kg6 {[%clk 0:00:14]}  a5 {[%clk 0:01:13]} 56. g4 {[%clk 0:00:13]}  a4 {[%clk 0:01:14]} 57. g5 {[%clk 0:00:13]}  a3 {[%clk 0:01:14]} 58. Kh6 {[%clk 0:00:14]}  Kb3 {[%clk 0:01:13]} 59. g6 {[%clk 0:00:14]}  Qf6 {[%clk 0:01:13]} 60. Kh5 {[%clk 0:00:13]}  a2 {[%clk 0:01:13]} 0-1


[Site "https://www.chess.com"]

[Event "Titled Tuesday Blitz March 21 Early 2023"]
[White "Kubatko, Ivan"]
[Black "Gubajdullin, Alexei"]
[WhiteFideId "24111473"]
[BlackFideId "4141202"]
[WhiteElo "2285"]
[BlackElo "2267"]
[Result "1-0"]
[Round "08"]
[TimeControl "180+2"]
[Date "2023.03.21"]
[WhiteClock "0:00:08"]
[BlackClock "0:00:11"]

1. e4 {[%clk 0:02:56]}  e5 {[%clk 0:02:50]} 2. Nf3 {[%clk 0:02:54]}  Nf6 {[%clk 0:02:50]} 3. Nc3 {[%clk 0:02:54]}  Nc6 {[%clk 0:02:49]} 4. g3 {[%clk 0:02:54]}  Bc5 {[%clk 0:02:49]} 5. Bg2 {[%clk 0:02:53]}  d6 {[%clk 0:02:48]} 6. h3 {[%clk 0:02:47]}  O-O {[%clk 0:02:48]} 7. O-O {[%clk 0:02:24]}  h6 {[%clk 0:02:45]} 8. d3 {[%clk 0:02:19]}  a6 {[%clk 0:02:45]} 9. Be3 {[%clk 0:02:18]}  Bxe3 {[%clk 0:02:37]} 10. fxe3 {[%clk 0:02:19]}  Be6 {[%clk 0:02:36]} 11. Nh4 {[%clk 0:02:14]}  g6 {[%clk 0:02:33]} 12. Nd5 {[%clk 0:02:07]}  Nd7 {[%clk 0:02:32]} 13. Qf3 {[%clk 0:01:50]}  Kg7 {[%clk 0:02:31]} 14. a3 {[%clk 0:01:46]}  f6 {[%clk 0:02:29]} 15. b4 {[%clk 0:01:37]}  Ne7 {[%clk 0:02:28]} 16. c4 {[%clk 0:01:34]}  c6 {[%clk 0:02:28]} 17. Nc3 {[%clk 0:01:22]}  a5 {[%clk 0:02:17]} 18. Kh2 {[%clk 0:01:19]}  axb4 {[%clk 0:02:11]} 19. axb4 {[%clk 0:01:20]}  Qb6 {[%clk 0:02:07]} 20. Rab1 {[%clk 0:01:03]}  Ra3 {[%clk 0:02:06]} 21. Rfc1 {[%clk 0:00:58]}  Rfa8 {[%clk 0:01:59]} 22. g4 {[%clk 0:00:54]}  Rh8 {[%clk 0:01:42]} 23. Qg3 {[%clk 0:00:53]}  Qa7 {[%clk 0:01:34]} 24. Nf5+ {[%clk 0:00:49]}  Bxf5 {[%clk 0:01:32]} 25. exf5 {[%clk 0:00:45]}  g5 {[%clk 0:01:32]} 26. Qe1 {[%clk 0:00:28]}  h5 {[%clk 0:01:31]} 27. Kg3 {[%clk 0:00:25]}  hxg4 {[%clk 0:01:29]} 28. hxg4 {[%clk 0:00:26]}  Qb8 {[%clk 0:01:20]} 29. Ra1 {[%clk 0:00:24]}  Rxa1 {[%clk 0:01:16]} 30. Rxa1 {[%clk 0:00:25]}  d5 {[%clk 0:01:16]} 31. e4 {[%clk 0:00:24]}  Rh4 {[%clk 0:00:48]} 32. Ne2 {[%clk 0:00:23]}  Qd6 {[%clk 0:00:37]} 33. Ng1 {[%clk 0:00:21]}  Rh8 {[%clk 0:00:17]} 34. Ra7 {[%clk 0:00:18]}  Qb8 {[%clk 0:00:16]} 35. Qa1 {[%clk 0:00:16]}  dxc4 {[%clk 0:00:16]} 36. dxc4 {[%clk 0:00:16]}  Nb6 {[%clk 0:00:16]} 37. Bf1 {[%clk 0:00:14]}  Rd8 {[%clk 0:00:15]} 38. Nf3 {[%clk 0:00:12]}  Nbc8 {[%clk 0:00:15]} 39. Ra8 {[%clk 0:00:12]}  Qc7 {[%clk 0:00:15]} 40. c5 {[%clk 0:00:12]}  Ng8 {[%clk 0:00:13]} 41. Bc4 {[%clk 0:00:11]}  Nh6 {[%clk 0:00:13]} 42. Be6 {[%clk 0:00:11]}  Qe7 {[%clk 0:00:12]} 43. Rxc8 {[%clk 0:00:11]}  Rxc8 {[%clk 0:00:11]} 44. Bxc8 {[%clk 0:00:12]}  Qd8 {[%clk 0:00:11]} 45. Be6 {[%clk 0:00:11]}  Qd3 {[%clk 0:00:11]} 46. Qa7 {[%clk 0:00:10]}  Qxe4 {[%clk 0:00:10]} 47. Qxb7+ {[%clk 0:00:10]}  Kh8 {[%clk 0:00:11]} 48. Qc8+ {[%clk 0:00:09]}  Kg7 {[%clk 0:00:10]} 49. Qd7+ {[%clk 0:00:10]}  Kf8 {[%clk 0:00:10]} 50. Qd8+ {[%clk 0:00:10]}  Kg7 {[%clk 0:00:10]} 51. Qe7+ {[%clk 0:00:10]}  Kh8 {[%clk 0:00:11]} 52. Qxf6+ {[%clk 0:00:10]}  Kh7 {[%clk 0:00:11]} 53. Nxg5# {[%clk 0:00:08]} 1-0


[Site "https://www.chess.com"]